fUST/lending_fUST_20240727
["ID","MTS","AMOUNT","RATE_DAILY","PERIOD"]
[333365225,1722071455465,-506.58431825,0.00015068,2]
[333365226,1722071455475,-500.0,0.00015068,2]
[333365227,1722071455484,-1117.42,0.00015068,2]
[333365228,1722071455494,-302.34994974,0.00015068,2]
[333365229,1722071455504,-500.0,0.00015068,2]
[333365230,1722071455514,-1196.6,0.00015068,2]
[333365231,1722071455524,-500.0,0.00015068,2]
[333365232,1722071455533,-500.0,0.00015068,2]
[333365233,1722071455543,-980.37,0.00015068,2]
[333365234,1722071455553,-2024.92,0.00015068,2]
[333365235,1722071455562,-555.68,0.00015068,2]
[333365236,1722071455571,-500.0,0.00015068,2]
[333365237,1722071455581,-1252.67,0.00015068,2]
[333365238,1722071455591,-1538.63,0.00015068,2]
[333365239,1722071455600,-2075.92,0.00015068,2]
[333365240,1722071455609,-500.0,0.00015068,2]
[333365241,1722071455618,-670.68,0.00015068,2]
[333365242,1722071455627,-826.55,0.00015068,2]
[333365243,1722071455637,-727.73,0.00015068,2]
[333365244,1722071455646,-500.0,0.00015068,2]
[333365245,1722071455656,-2488.5,0.00015068,2]
[333365246,1722071455665,-500.0,0.00015068,2]
[333365247,1722071455675,-1149.69,0.00015068,2]
[333365248,1722071455684,-3095.49,0.00015068,2]
[333365249,1722071455694,-718.24,0.00015068,2]
[333365250,1722071455703,-206.619531,0.00015068,2]
[333365251,1722071455713,-1251.27201754,0.00015187,2]
[333365252,1722071455722,-151.0,0.000153,2]
[333365253,1722071455731,-500.0,0.00015342,2]
[333365254,1722071455741,-866.62,0.00015342,2]
[333365255,1722071455750,-151.0,0.00015342,2]
[333365256,1722071455759,-500.0,0.00015342,2]
[333365257,1722071455768,-762.54,0.00015342,2]
[333365258,1722071455777,-500.0,0.00015342,2]
[333365259,1722071455786,-500.0,0.00015342,2]
[333365260,1722071455795,-1277.69,0.00015342,2]
[333365261,1722071455805,-500.0,0.00015342,2]
[333365262,1722071455814,-500.0,0.00015342,2]
[333365263,1722071455824,-500.0,0.00015342,2]
[333365264,1722071455833,-746.02,0.00015342,2]
[333365265,1722071455843,-823.3,0.00015342,2]
[333365266,1722071455853,-500.0,0.00015342,2]
[333365267,1722071455862,-500.0,0.00015342,2]
[333365268,1722071455871,-500.0,0.00015342,2]
[333365269,1722071455881,-996.13,0.00015342,2]
[333365270,1722071455890,-903.18,0.00015342,2]
[333365271,1722071455899,-229.06027161,0.00015342,2]
[333365272,1722071455908,-1139.22,0.00015342,2]
[333365273,1722071455917,-1397.19,0.00015342,2]
[333365274,1722071455926,-500.0,0.00015342,2]
[333365275,1722071455935,-987.44,0.00015342,2]
[333365276,1722071455945,-500.0,0.00015342,2]
[333365277,1722071455954,-500.0,0.00015342,2]
[333365278,1722071455963,-500.0,0.00015342,2]
[333365279,1722071455972,-281.3053282,0.00015342,2]
[333365280,1722071456092,-680.27,0.00015342,2]
[333365281,1722071456102,-521.08,0.00015342,2]
[333365282,1722071456111,-675.8,0.00015342,2]
[333365283,1722071456121,-500.0,0.00015342,2]
[333365284,1722071456130,-588.71,0.00015342,2]
[333365285,1722071456139,-1892.18,0.00015342,2]
[333365286,1722071456149,-1452.55,0.00015342,2]
[333365287,1722071456158,-151.0,0.00015342,2]
[333365288,1722071456167,-157.412293,0.00015342,2]
[333365289,1722071456178,-500.0,0.00015342,2]
[333365290,1722071456192,-1070.04,0.00015342,2]
[333365291,1722071456203,-157.412293,0.00015342,2]
[333365292,1722071456213,-151.0,0.00015342,2]
[333365293,1722071456223,-2218.23,0.00015342,2]
[333365294,1722071456233,-1236.96,0.00015342,2]
[333365295,1722071456244,-500.0,0.00015342,2]
[333365296,1722071456257,-199.563824,0.00015342,2]
[333365297,1722071456271,-199.563824,0.00015342,2]
[333365298,1722071456280,-570.15,0.00015342,2]
[333365299,1722071456290,-1048.1,0.00015342,2]
[333365300,1722071456299,-500.0,0.00015342,2]
[333365301,1722071456308,-1846.41,0.00015342,2]
[333365302,1722071456318,-641.14884925,0.00015342,2]
[333365303,1722071456328,-151.0,0.00015342,2]
[333365304,1722071456337,-500.0,0.00015342,2]
[333365305,1722071456346,-4947.16,0.00015342,2]
[333365306,1722071456356,-8415.5,0.00015342,2]
[333365307,1722071456365,-513.53,0.00015342,2]
[333365308,1722071456374,-500.0,0.00015342,2]
[333365309,1722071456384,-3538.98,0.00015342,2]
[333365310,1722071456393,-500.0,0.00015342,2]
[333365311,1722071456402,-1178.93,0.00015342,2]
[333365312,1722071456412,-711.33,0.00015342,2]
[333365313,1722071456421,-1592.69,0.00015342,2]
[333365314,1722071456431,-875.19,0.00015342,2]
[333365315,1722071456441,-2442.33,0.00015342,2]
[333365316,1722071456452,-375.918608,0.00015342,2]
[333365317,1722071456463,-375.918598,0.00015342,2]
[333365318,1722071456474,-571.40123641,0.00015342,2]
[333365319,1722071456483,-348.695225,0.00015342,2]
[333365320,1722071456493,-151.0,0.00015342,2]
[333365321,1722071456502,-348.69522,0.00015342,2]
[333365322,1722071456511,-797.41,0.00015342,2]
[333365323,1722071456520,-549.17,0.00015342,2]
[333365324,1722071456530,-500.0,0.00015342,2]
[333365325,1722071456540,-500.0,0.00015342,2]
[333365326,1722071456549,-1253.61,0.00015342,2]
[333365327,1722071456559,-726.03,0.00015342,2]
[333365328,1722071456568,-151.0,0.00015342,2]
[333365329,1722071456579,-688.65,0.00015342,2]
[333365330,1722071456589,-282.181974,0.00015342,2]
[333365331,1722071456598,-282.181974,0.00015342,2]
[333365332,1722071456608,-500.0,0.00015342,2]
[333365333,1722071456617,-1677.61,0.00015342,2]
[333365334,1722071456626,-868.94,0.00015342,2]
[333365335,1722071456636,-725.81,0.00015342,2]
[333365336,1722071456645,-1929.96,0.00015342,2]
[333365337,1722071456654,-1092.21,0.00015342,2]
[333365338,1722071456663,-500.0,0.00015342,2]
[333365339,1722071456673,-2375.04,0.00015342,2]
[333365340,1722071456682,-5915.26,0.00015342,2]
[333365341,1722071456691,-1381.22,0.00015342,2]
[333365342,1722071456700,-3338.17,0.00015342,2]
[333365343,1722071456709,-756.39,0.00015342,2]
[333365344,1722071456719,-811.36,0.00015342,2]
[333365345,1722071456728,-151.0,0.00015342,2]
[333365346,1722071456738,-993.2,0.00015342,2]
[333365347,1722071456747,-438.32633923,0.00015342,2]
[333365348,1722071456756,-1117.42,0.00015342,2]
[333365349,1722071456766,-500.0,0.00015342,2]
[333365350,1722071456775,-1196.6,0.00015342,2]
[333365351,1722071456785,-500.0,0.00015342,2]
[333365352,1722071456794,-309.071234,0.00015342,2]
[333365353,1722071456804,-564.56947294,0.00015342,2]
[333365354,1722071456813,-980.37,0.00015342,2]
[333365355,1722071456823,-309.071234,0.00015342,2]
[333365356,1722071456832,-2024.92,0.00015342,2]
[333365357,1722071456841,-555.68,0.00015342,2]
[333365358,1722071456851,-500.0,0.00015342,2]
[333365359,1722071456860,-1252.67,0.00015342,2]
[333365360,1722071456870,-238.666415,0.00015342,2]
[333365361,1722071456879,-1538.63,0.00015342,2]
[333365362,1722071456889,-2075.92,0.00015342,2]
[333365363,1722071456898,-238.666415,0.00015342,2]
[333365364,1722071456908,-504.57399334,0.00015342,2]
[333365365,1722071456918,-670.68,0.00015342,2]
[333365366,1722071456927,-826.55,0.00015342,2]
[333365367,1722071456936,-727.73,0.00015342,2]
[333365368,1722071456945,-506.55284849,0.00015342,2]
[333365369,1722071456954,-2488.5,0.00015342,2]
[333365370,1722071456964,-500.0,0.00015342,2]
[333365371,1722071456974,-1149.69,0.00015342,2]
[333365372,1722071456984,-157.213144,0.00015342,2]
[333365373,1722071456995,-3095.49,0.00015342,2]
[333365374,1722071457005,-718.24,0.00015342,2]
[333365375,1722071457015,-153.0,0.00015425,2]
[333365376,1722071457025,-206.7714858,0.00015425,2]
[333365377,1722071457034,-1000.0,0.000155,2]
[333365378,1722071457044,-206.7714858,0.00015534,2]
[333365379,1722071457053,-206.7714858,0.00015534,2]
[333365380,1722071457063,-151.0,0.00015605,2]
[333365381,1722071457073,-517.90856838,0.00015616,2]
[333365382,1722071457082,-866.62,0.00015616,2]
[333365383,1722071457093,-151.0,0.00015616,2]
[333365384,1722071457103,-500.0,0.00015616,2]
[333365385,1722071457112,-762.54,0.00015616,2]
[333365386,1722071457122,-500.0,0.00015616,2]
[333365387,1722071457131,-500.0,0.00015616,2]
[333365388,1722071457141,-1277.69,0.00015616,2]
[333365389,1722071457150,-500.0,0.00015616,2]
[333365390,1722071457159,-500.0,0.00015616,2]
[333365391,1722071457169,-490.45,0.00015616,2]
[333365392,1722071457178,-746.02,0.00015616,2]
[333365393,1722071457192,-823.3,0.00015616,2]
[333365394,1722071457203,-500.0,0.00015616,2]
[333365395,1722071457212,-500.0,0.00015616,2]
[333365396,1722071457222,-500.0,0.00015616,2]
[333365397,1722071457234,-996.13,0.00015616,2]
[333365398,1722071457244,-903.18,0.00015616,2]
[333365399,1722071457254,-1013.55802741,0.00015616,2]
[333365400,1722071457269,-125.66197259,0.00015616,2]
[333365401,1722071457279,-1397.19,0.00015616,2]
[333365402,1722071457288,-500.0,0.00015616,2]
[333365403,1722071457298,-987.44,0.00015616,2]
[333365404,1722071457307,-500.0,0.00015616,2]
[333365405,1722071457316,-636.8588485,0.00015616,2]
[333365406,1722071457326,-500.0,0.00015616,2]
[333365407,1722071457335,-680.27,0.00015616,2]
[333365408,1722071457345,-521.08,0.00015616,2]
[333365409,1722071457354,-486.76545891,0.00015616,2]
[333365410,1722071457590,-500.0,0.0001212,2]
[333365411,1722071457601,-21.74223491,0.0001212,2]
[333365412,1722071457610,-955.14903331,0.00013447,2]
[333365413,1722071457620,-217.51175923,0.00013698,2]
[333365414,1722071457629,-501.29453589,0.00013698,2]
[333365415,1722071457638,-189.03454109,0.00015616,2]
[333365416,1722071457647,-500.0,0.00015616,2]
[333365417,1722071457658,-588.71,0.00015616,2]
[333365418,1722071457667,-1452.55,0.00015616,2]
[333365419,1722071457677,-151.0,0.00015616,2]
[333365420,1722071457686,-157.412293,0.00015616,2]
[333365421,1722071457696,-500.0,0.00015616,2]
[333365422,1722071457706,-1070.04,0.00015616,2]
[333365423,1722071457715,-157.412287,0.00015616,2]
[333365424,1722071457725,-2218.23,0.00015616,2]
[333365425,1722071457734,-1236.96,0.00015616,2]
[333365426,1722071457744,-500.0,0.00015616,2]
[333365427,1722071457753,-199.563824,0.00015616,2]
[333365428,1722071457763,-199.563833,0.00015616,2]
[333365429,1722071457773,-570.15,0.00015616,2]
[333365430,1722071457782,-1048.1,0.00015616,2]
[333365431,1722071457791,-500.0,0.00015616,2]
[333365432,1722071457800,-1663.86193299,0.00015616,2]
[333365433,1722071491245,273.37336231,9.9e-05,2]
[333365434,1722071499110,273.37336231,9.9e-05,2]
[333365435,1722071509240,-434.08,0.00010959,2]
[333365436,1722071513050,-422.87,0.00010959,2]
[333365437,1722071513692,305.34140227,9.999e-05,2]
[333365438,1722071517596,-165.42397432,0.00010959,2]
[333365439,1722071519880,-361.73,0.00010959,2]
[333365440,1722071528739,-222.93602568,0.00010958,2]
[333365441,1722071529539,-77.06397432,0.00010958,2]
[333365442,1722071529562,-222.93602568,0.00010958,2]
[333365443,1722071532981,-77.06397432,0.00010958,2]
[333365444,1722071533005,-222.93602568,0.00010959,2]
[333365445,1722071533028,-1.44,0.00010959,2]
[333365446,1722071540416,-624.83,0.00010959,2]
[333365447,1722071550953,-520.7,0.00010959,2]
[333365448,1722071553766,-24900.0,0.00011863,2]
[333365449,1722071572497,165.42397432,9.999e-05,2]
[333365450,1722071572562,200.0,0.0001,2]
[333365451,1722071693516,165.42397432,9.999e-05,2]
[333365452,1722071804512,165.42397432,9.999e-05,2]
[333365454,1722071901580,250.83481708,9.999e-05,2]
[333365455,1722072122473,200.0,0.0001,2]
[333365456,1722072252304,200.0,0.0001,2]
[333365457,1722072295654,725.47045797,9.999e-05,2]
[333365458,1722072304573,533.56056987,9.999e-05,2]
[333365459,1722072306249,726.25644231,9.999e-05,2]
[333365461,1722072319995,312.66003514,9.999e-05,2]
[333365462,1722072323014,663.88021851,9.999e-05,2]
[333365463,1722072323107,200.0,0.0001,2]
[333365464,1722072334690,300.43121588,9.999e-05,2]
[333365465,1722072338143,-166.50599941,0.00010959,2]
[333365467,1722072342999,158.39131047,9.999e-05,2]
[333365470,1722072367733,154.97509757,9.999e-05,2]
[333365471,1722072376360,188.10567749,9.999e-05,2]
[333365472,1722072377834,238.56292129,9.999e-05,2]
[333365476,1722072423674,413.63079778,9.999e-05,2]
[333365477,1722072425089,-251.06554514,0.00010958,2]
[333365478,1722072429096,-48.93445486,0.00010958,2]
[333365479,1722072429119,-300.0,0.00010958,2]
[333365480,1722072429142,-267.40400059,0.00010959,2]
[333365481,1722072429165,-48.85506932,0.00010959,2]
[333365482,1722072455544,531.61181222,9.999e-05,2]
[333365483,1722072460876,254.63449778,9.999e-05,2]
[333365484,1722072490314,187.78609457,9.999e-05,2]
[333365486,1722072511086,336.74485882,9.999e-05,2]
[333365487,1722072522683,413.63079778,9.999e-05,2]
[333365488,1722072524206,12929.30552394,0.0001,2]
[333365489,1722072537686,413.63079778,9.999e-05,2]
[333365490,1722072548116,-300.0,0.00010958,2]
[333365491,1722072548138,-300.0,0.00010958,2]
[333365492,1722072548159,-353.45,0.00010959,2]
[333365493,1722072548181,-294.54,0.00010959,2]
[333365494,1722072548206,-245.45,0.00010959,2]
[333365495,1722072548233,-204.55,0.00010959,2]
[333365496,1722072548258,-170.45,0.00010959,2]
[333365497,1722072548280,-852.3,0.00010959,2]
[333365498,1722072548303,-162.071583,0.00011512,2]
[333365499,1722072548327,-162.071583,0.00011543,2]
[333365500,1722072548356,-162.071583,0.00011575,2]
[333365501,1722072548381,-9643.60204179,0.00011582,2]
[333365502,1722072553024,213.98629008,9.999e-05,2]
[333365503,1722072553523,531.61181222,9.999e-05,2]
[333365504,1722072555157,-15256.39795821,0.00011582,2]
[333365505,1722072555182,-162.071583,0.00011607,2]
[333365506,1722072555211,-162.071583,0.00011638,2]
[333365507,1722072555233,-162.071583,0.0001167,2]
[333365508,1722072555256,-162.071583,0.00011701,2]
[333365509,1722072555280,-162.071583,0.00011733,2]
[333365510,1722072555303,-162.071583,0.00011764,2]
[333365511,1722072555325,-162.071583,0.00011796,2]
[333365512,1722072555349,-162.071583,0.00011828,2]
[333365513,1722072555372,-162.071583,0.00011859,2]
[333365514,1722072555394,-162.071583,0.00011891,2]
[333365515,1722072555416,-162.071583,0.00011922,2]
[333365516,1722072555439,-162.071583,0.00011954,2]
[333365517,1722072555460,-162.071583,0.00011985,2]
[333365518,1722072555482,-162.071583,0.00012017,2]
[333365519,1722072555503,-420.0,0.00012042,2]
[333365520,1722072555524,-162.071583,0.00012048,2]
[333365521,1722072555545,-420.0,0.00012054,2]
[333365522,1722072555569,-162.071583,0.0001208,2]
[333365523,1722072555591,-162.071583,0.00012112,2]
[333365524,1722072565074,165.42397432,9.999e-05,2]
[333365525,1722072604537,200.0,0.00010959,2]
[333365526,1722072604559,100.43465587,0.00010959,2]
[333365527,1722072604584,31.39534413,0.00010959,2]
[333365556,1722072633639,-24900.0,0.00012487,2]
[333365558,1722072633649,-154.68290005,0.00013,2]
[333365560,1722072633660,-1908.80801578,0.00013,2]
[333365562,1722072633670,-335.41648324,0.000132,2]
[333365563,1722072633680,-413.63079778,0.00013283,2]
[333365565,1722072633689,-540.53450372,0.00013283,2]
[333365567,1722072633699,-165.42397432,0.00013283,2]
[333365569,1722072633709,-192.940552,0.00013425,2]
[333365571,1722072633718,-300.0,0.00013496,2]
[333365573,1722072633727,-251.0,0.00013496,2]
[333365575,1722072633736,-12217.62412498,0.00013497,2]
[333365577,1722072633747,-803.31014905,0.00013598,2]
[333365578,1722072633757,-468.46815686,0.00013598,2]
[333365580,1722072633766,-151.0,0.000136,2]
[333365581,1722072633776,-6537.37897884,0.000136,2]
[333365582,1722072633786,-83296.6142829,0.00013688,2]
[333365583,1722072633796,-1278.22,0.00013698,2]
[333365584,1722072633806,-1278.22,0.00013698,2]
[333365585,1722072633829,-1278.22,0.00013698,2]
[333365586,1722072633838,-1278.22,0.00013698,2]
[333365587,1722072633848,-1278.22,0.00013698,2]
[333365588,1722072633858,-1278.22,0.00013698,2]
[333365589,1722072633868,-1278.22,0.00013698,2]
[333365590,1722072633878,-1278.22,0.00013698,2]
[333365591,1722072633889,-1278.22,0.00013698,2]
[333365592,1722072633899,-1278.22,0.00013698,2]
[333365593,1722072633909,-1278.22,0.00013698,2]
[333365594,1722072633920,-1278.22,0.00013698,2]
[333365595,1722072633930,-1278.22,0.00013698,2]
[333365596,1722072633939,-1278.22,0.00013698,2]
[333365597,1722072633949,-1278.22,0.00013698,2]
[333365598,1722072633959,-1278.22,0.00013698,2]
[333365599,1722072633969,-1278.22,0.00013698,2]
[333365600,1722072633979,-1278.22,0.00013698,2]
[333365601,1722072633990,-1278.22,0.00013698,2]
[333365602,1722072634001,-1278.22,0.00013698,2]
[333365603,1722072634010,-1278.22,0.00013698,2]
[333365604,1722072634020,-1278.22,0.00013698,2]
[333365605,1722072634030,-1278.22,0.00013698,2]
[333365606,1722072634040,-1278.25843779,0.00013698,2]
[333365607,1722072634050,-500.0,0.00013698,2]
[333365608,1722072634060,-430.50993359,0.00013698,2]
[333365609,1722072634070,-500.0,0.00013698,2]
[333365610,1722072634080,-500.0,0.00013698,2]
[333365611,1722072634091,-500.0,0.00013698,2]
[333365612,1722072634101,-699.43,0.00013698,2]
[333365613,1722072634111,-500.0,0.00013698,2]
[333365614,1722072634121,-500.0,0.00013698,2]
[333365615,1722072634132,-500.0,0.00013698,2]
[333365616,1722072634142,-500.0,0.00013698,2]
[333365617,1722072634152,-500.0,0.00013698,2]
[333365618,1722072634162,-559.52,0.00013698,2]
[333365619,1722072634172,-500.0,0.00013698,2]
[333365620,1722072634183,-598.53,0.00013698,2]
[333365621,1722072634193,-500.0,0.00013698,2]
[333365622,1722072634203,-500.0,0.00013698,2]
[333365623,1722072634214,-564.0,0.00013698,2]
[333365624,1722072634224,-617.47,0.00013698,2]
[333365625,1722072634235,-500.0,0.00013698,2]
[333365626,1722072634245,-500.0,0.00013698,2]
[333365627,1722072634257,-500.0,0.00013698,2]
[333365628,1722072634268,-500.0,0.00013698,2]
[333365629,1722072634278,-788.61,0.00013698,2]
[333365630,1722072634288,-500.0,0.00013698,2]
[333365631,1722072634298,-500.0,0.00013698,2]
[333365632,1722072634308,-896.65,0.00013698,2]
[333365633,1722072634319,-574.77,0.00013698,2]
[333365634,1722072634330,-500.0,0.00013698,2]
[333365635,1722072634341,-661.71,0.00013698,2]
[333365636,1722072634351,-500.0,0.00013698,2]
[333365637,1722072634361,-500.0,0.00013698,2]
[333365638,1722072634371,-506.85,0.00013698,2]
[333365639,1722072634381,-500.0,0.00013698,2]
[333365640,1722072634391,-1047.9,0.00013698,2]
[333365641,1722072634401,-500.0,0.00013698,2]
[333365642,1722072634411,-500.0,0.00013698,2]
[333365643,1722072634421,-507.2493886,0.00013698,2]
[333365644,1722072634432,-510.2,0.00013698,2]
[333365645,1722072634442,-500.0,0.00013698,2]
[333365646,1722072634452,-500.0,0.00013698,2]
[333365647,1722072634462,-500.0,0.00013698,2]
[333365648,1722072634472,-500.0,0.00013698,2]
[333365649,1722072634482,-500.0,0.00013698,2]
[333365650,1722072634492,-500.0,0.00013698,2]
[333365651,1722072634503,-503.20880811,0.00013698,2]
[333365652,1722072634512,-500.0,0.00013698,2]
[333365653,1722072634522,-500.0,0.00013698,2]
[333365654,1722072634531,-500.0,0.00013698,2]
[333365655,1722072634540,-177.56488755,0.00013698,2]
[333365656,1722072634550,-500.0,0.00013698,2]
[333365657,1722072634560,-500.0,0.00013698,2]
[333365658,1722072634569,-500.0,0.00013698,2]
[333365659,1722072634579,-402.99362953,0.00013698,2]
[333365660,1722072634593,-500.0,0.00013698,2]
[333365661,1722072634604,-500.0,0.00013698,2]
[333365662,1722072634613,-500.0,0.00013698,2]
[333365663,1722072634623,-500.0,0.00013698,2]
[333365664,1722072634632,-500.0,0.00013698,2]
[333365665,1722072634642,-500.0,0.00013698,2]
[333365666,1722072634656,-500.0,0.00013698,2]
[333365667,1722072634667,-500.0,0.00013698,2]
[333365668,1722072634677,-500.0,0.00013698,2]
[333365669,1722072634687,-500.0,0.00013698,2]
[333365670,1722072634697,-500.0,0.00013698,2]
[333365671,1722072634707,-500.0,0.00013698,2]
[333365672,1722072634719,-786.08,0.00013698,2]
[333365673,1722072634730,-500.0,0.00013698,2]
[333365674,1722072634739,-500.0,0.00013698,2]
[333365675,1722072634751,-500.0,0.00013698,2]
[333365676,1722072634762,-1990.60270892,0.00013698,2]
[333365702,1722072638749,-1925.89729108,0.00013698,2]
[333365703,1722072638762,-500.0,0.00013698,2]
[333365704,1722072638771,-500.0,0.00013698,2]
[333365705,1722072638780,-500.0,0.00013698,2]
[333365706,1722072638790,-500.0,0.00013698,2]
[333365707,1722072638800,-1149.93,0.00013698,2]
[333365708,1722072638809,-500.0,0.00013698,2]
[333365709,1722072638819,-500.0,0.00013698,2]
[333365710,1722072638828,-503.74727842,0.00013698,2]
[333365711,1722072638838,-500.0,0.00013698,2]
[333365713,1722072638848,-802.53,0.00013698,2]
[333365716,1722072638858,-1663.67,0.00013698,2]
[333365718,1722072638867,-500.0,0.00013698,2]
[333365720,1722072638876,-706.91,0.00013698,2]
[333365722,1722072638886,-500.0,0.00013698,2]
[333365723,1722072638895,-500.0,0.00013698,2]
[333365724,1722072639069,-927.72,0.00013698,2]
[333365725,1722072639079,-1392.41,0.00013698,2]
[333365726,1722072639088,-933.32,0.00013698,2]
[333365727,1722072639098,-500.0,0.00013698,2]
[333365728,1722072639108,-500.0,0.00013698,2]
[333365729,1722072639117,-614.91,0.00013698,2]
[333365730,1722072639127,-500.0,0.00013698,2]
[333365731,1722072639136,-500.91322476,0.00013698,2]
[333365732,1722072639145,-1933.51,0.00013698,2]
[333365733,1722072639156,-181.64958169,0.00013698,2]
[333365734,1722072639166,-500.0,0.00013698,2]
[333365735,1722072639176,-500.0,0.00013698,2]
[333365736,1722072639185,-500.0,0.00013698,2]
[333365737,1722072639195,-500.0,0.00013698,2]
[333365738,1722072639204,-500.0,0.00013698,2]
[333365739,1722072639214,-500.0,0.00013698,2]
[333365740,1722072639223,-500.0,0.00013698,2]
[333365741,1722072639233,-7012.92,0.00013698,2]
[333365742,1722072639242,-500.0,0.00013698,2]
[333365743,1722072639251,-500.0,0.00013698,2]
[333365744,1722072639263,-500.0,0.00013698,2]
[333365745,1722072639272,-1608.3,0.00013698,2]
[333365746,1722072639282,-592.77,0.00013698,2]
[333365747,1722072639292,-664.5,0.00013698,2]
[333365748,1722072639302,-3096.61,0.00013698,2]
[333365749,1722072639311,-729.33,0.00013698,2]
[333365750,1722072639321,-500.0,0.00013698,2]
[333365751,1722072639331,-1327.24,0.00013698,2]
[333365752,1722072639343,-500.0,0.00013698,2]
[333365753,1722072639353,-500.0,0.00013698,2]
[333365754,1722072639364,-500.0,0.00013698,2]
[333365755,1722072639373,-1398.0,0.00013698,2]
[333365756,1722072639383,-603.68,0.00013698,2]
[333365757,1722072639393,-724.11,0.00013698,2]
[333365758,1722072639402,-500.0,0.00013698,2]
[333365759,1722072639412,-1223.76,0.00013698,2]
[333365760,1722072639422,-500.0,0.00013698,2]
[333365761,1722072639432,-910.18,0.00013698,2]
[333365762,1722072639441,-573.88,0.00013698,2]
[333365763,1722072639451,-500.0,0.00013698,2]
[333365764,1722072639460,-500.0,0.00013698,2]
[333365765,1722072639470,-4929.39,0.00013698,2]
[333365766,1722072639481,-500.0,0.00013698,2]
[333365767,1722072639493,-504.60023495,0.00013698,2]
[333365768,1722072639506,-500.0,0.00013698,2]
[333365769,1722072639517,-500.0,0.00013698,2]
[333365770,1722072639527,-604.84,0.00013698,2]
[333365771,1722072639537,-500.0,0.00013698,2]
[333365772,1722072639549,-2781.8,0.00013698,2]
[333365773,1722072639560,-233.44487698,0.00013698,2]
[333365774,1722072639570,-827.67,0.00013698,2]
[333365775,1722072639582,-500.0,0.00013698,2]
[333365776,1722072639597,-1151.02,0.00013698,2]
[333365777,1722072639607,-931.18,0.00013698,2]
[333365778,1722072639618,-1979.2,0.00013698,2]
[333365779,1722072639629,-500.0,0.00013698,2]
[333365780,1722072639639,-1005.98,0.00013698,2]
[333365781,1722072639648,-630.33,0.00013698,2]
[333365782,1722072639659,-1011.5,0.00013698,2]
[333365783,1722072639671,-955.62,0.00013698,2]
[333365784,1722072639680,-500.0,0.00013698,2]
[333365785,1722072639691,-816.97,0.00013698,2]
[333365786,1722072639701,-500.0,0.00013698,2]
[333365787,1722072639710,-676.13,0.00013698,2]
[333365788,1722072639719,-500.0,0.00013698,2]
[333365789,1722072639729,-1282.19,0.00013698,2]
[333365790,1722072639738,-500.0,0.00013698,2]
[333365791,1722072639747,-688.79,0.00013698,2]
[333365792,1722072639757,-224.03452956,0.00013698,2]
[333365793,1722072639767,-500.0,0.00013698,2]
[333365794,1722072639776,-500.0,0.00013698,2]
[333365795,1722072639785,-606.44,0.00013698,2]
[333365796,1722072639795,-1043.89,0.00013698,2]
[333365797,1722072639804,-500.0,0.00013698,2]
[333365798,1722072639813,-1687.43,0.00013698,2]
[333365799,1722072639822,-2708.56,0.00013698,2]
[333365800,1722072639832,-558.9,0.00013698,2]
[333365801,1722072639842,-500.0,0.00013698,2]
[333365802,1722072639851,-536.09369508,0.00013698,2]
[333365803,1722072639860,-1729.93,0.00013698,2]